[Event "7th Sharjah Challengers 2024"]
[Site "Sharjah"]
[Date "2024.05.18"]
[Round "5.7"]
[White "Laddha, Shubh Jayesh"]
[Black "Rios Gomez, Cristhian Camilo"]
[Result "1/2-1/2"]
[ECO "B33"]
[WhiteElo "2325"]
[BlackElo "2472"]
[Annotator "TA"]
[PlyCount "41"]
[EventDate "2024.05.13"]
[EventType "swiss"]
[EventCountry "UAE"]
[SourceTitle "playchess.com"]
[Source "ChessBase"]
[SourceQuality "1"]
[TimeControl "5400+30"]

{[%evp 23,41,0,0,0,0,0,24,8,37,28,30,31,27,20,49,8,66,26,66,62]} 1. e4 {[%emt 0:00:04]} c5 {[%emt 0:00:18]} 2. Nf3 {[%emt 0:00:04][%cal Bg1f3,Bf3d4,Bd4b5,Bb5a3,Ba3b1][%mdl 32]} Nc6 {[%emt 0:00:17]} 3. d4 {[%emt 0:00:10]} cxd4 {[%emt 0:00:14]} 4. Nxd4 {[%emt 0:00:04]} Nf6 {[%emt 0:00:16]} 5. Nc3 {[%emt 0:00:05]} e5 {[%emt 0:00:17]} 6. Ndb5 {[%emt 0:00:04]} d6 {[%emt 0:00:10]} 7. Bg5 {[%emt 0:00:05]} a6 {[%emt 0:00:12]} 8. Na3 {[%emt 0:00:04]} b5 {[%emt 0:00:08][%cal Bb7b5,Bb5b4][%mdl 32]} 9. Nab1 {[%emt 0:00:08]} Be7 {[%emt 0:00:37]} 10. Bxf6 {[%emt 0:00:14]} Bxf6 {[%emt 0:00:08]} 11. a4 {[%emt 0:00:06]} b4 {[%emt 0:00:53]} 12. Nd5 {[%emt 0:00:07]} O-O {[%emt 0:00:46]} 13. Bc4 {[%emt 0:00:24]} Be6 {[%emt 0:01:46]} 14. O-O {[%emt 0:00:49]} g6 {[%emt 0:01:22]} 15. c3 {[%emt 0:12:56] White has an edge.} bxc3 {[%emt 0:02:00]} 16. Nbxc3 {[%emt 0:00:48] A dynamic duo of knights.} Bg7 {[%emt 0:03:02]} 17. Qd3 {[%emt 0:07:15]} a5 {[%emt 0:00:43]} 18. b3 {[%emt 0:09:43]} Kh8 {[%emt 0:08:12]} 19. Rad1 {[%emt 1:06:50]} f5 {[%emt 1:18:39]} (19... Nd4 $11) 20. f3 {[%emt 0:00:30]} f4 21. Nb5 {[%emt 0:00:00] Weighted Error Value: White=0.15 (very precise) /Black=0.23 (precise) .  Mistake:       	---       	Black=1      Inaccurate:     	White=2     	Black=3      OK:         	White=3     	Black=2} 1/2-1/2

[Event "7th Sharjah Challengers 2024"]
[Site "Sharjah"]
[Date "2024.05.18"]
[Round "5.8"]
[White "Hakobyan, Erik"]
[Black "Nitish Belurkar"]
[Result "0-1"]
[ECO "C01"]
[WhiteElo "2340"]
[BlackElo "2451"]
[Annotator "TA"]
[PlyCount "58"]
[EventDate "2024.05.13"]
[EventType "swiss"]
[EventCountry "UAE"]
[SourceTitle "playchess.com"]
[Source "ChessBase"]
[SourceQuality "1"]
[TimeControl "5400+30"]

{[%evp 11,58,0,16,6,8,-25,0,-8,-24,-30,-32,-24,-34,-36,-26,-39,-31,-43,-26,-44,-46,-48,-50,-119,-131,-127,-111,-110,-129,-125,-109,-127,-113,-112,-122,-245,-261,-274,-264,-285,-287,-268,-260,-247,-293,-276,-277,-319,-321]} 1. e4 {[%emt 0:00:06]} e6 {[%emt 0:00:06]} 2. d4 {[%emt 0:00:19]} d5 {[%emt 0:00:04]} 3. exd5 {[%emt 0:02:04]} exd5 {[%emt 0:00:07]} 4. Nf3 {[%emt 0:00:05]} Bd6 {[%emt 0:01:32]} 5. c4 {[%emt 0:01:33]} Nf6 {[%emt 0:00:07]} 6. c5 {[%emt 0:00:50]} Be7 {[%emt 0:00:05]} 7. Qa4+ {[%emt 0:01:14]} Bd7 {[%emt 0:06:49]} 8. Qb3 {[%emt 0:01:50][%cal Oc1e3]} Nc6 {[%emt 0:00:32]} 9. Nc3 {[%emt 0:06:00][%cal Of1b5] The position is equal.} O-O {[%emt 0:06:47]} 10. Be3 {[%emt 0:04:39][%cal Of1e2]} b6 {[%emt 0:10:46]} 11. cxb6 {[%emt 0:03:04]} axb6 {[%emt 0:00:29]} 12. Be2 {[%emt 0:02:00][%cal Oe1g1]} Bf5 {[%emt 0:05:10]} 13. a3 {[%emt 0:08:41] Wards off Nb4} Na5 {[%emt 0:06:49]} 14. Qd1 {[%emt 0:01:00]} c5 {[%emt 0:00:09]} 15. O-O {[%emt 0:02:41]} c4 {[%emt 0:03:08]} 16. Ne5 {[%emt 0:01:17]} Ne4 {[%emt 0:04:16]} 17. Nxe4 {[%emt 0:07:21]} (17. Bg4 $15 Bg6 18. Qe1) 17... Bxe4 $17 {[%emt 0:00:23]} 18. Rc1 {[%emt 0:01:41]} f6 {[%emt 0:05:43]} 19. Nf3 {[%emt 0:00:28]} b5 {[%emt 0:00:51]} 20. Nd2 {[%emt 0:04:04]} Bg6 {[%emt 0:00:32]} 21. Bh5 {[%emt 0:03:19]} Bd3 {[%emt 0:02:38]} 22. Be2 {[%emt 0:03:15]} Bf5 {[%emt 0:01:13] Black is more active.} 23. Bg4 {[%emt 0:06:10] White does not recover from this.} (23. h3 $17) 23... Bxg4 $1 $19 {[%emt 0:05:46]} 24. Qxg4 {[%emt 0:00:14] [#]} f5 $1 {[%emt 0:00:03]} 25. Qg3 {[%emt 0:01:58] [#]} f4 $1 {[%emt 0:00:58][%mdl 512]} 26. Bxf4 {[%emt 0:00:45] [#]} Rxf4 {[%emt 0:00:22][%mdl 512]} 27. Qxf4 {[%emt 0:00:08] Qf5 would now be deadly.} Bg5 {[%emt 0:00:04]} 28. Qf5 {[%emt 0:00:51]} Bxd2 {[%emt 0:00:02]} 29. Rc2 {[%emt 0:01:11]} Nb3 {[%emt 0:02:04] Weighted Error Value: White=0.18 (very precise) /Black=0.03 (flawless) .  Mistake:       	White=2     	---        Inaccurate:     	White=1     	---        OK:         	White=10    	Black=11     Best:        	---       	Black=3      Strong:       	---       	Black=2      Brilliant:      	---       	Black=2} 0-1

[Event "7th Sharjah Challengers 2024"]
[Site "Sharjah"]
[Date "2024.05.18"]
[Round "5.9"]
[White "Mohammad Fahad, Rahman"]
[Black "Anwesh, Upadhyaya"]
[Result "1/2-1/2"]
[ECO "E07"]
[WhiteElo "2435"]
[BlackElo "2345"]
[Annotator "TA"]
[PlyCount "56"]
[EventDate "2024.05.13"]
[EventType "swiss"]
[EventCountry "UAE"]
[SourceTitle "playchess.com"]
[Source "ChessBase"]
[SourceQuality "1"]
[TimeControl "5400+30"]

{[%evp 16,56,14,0,22,0,27,11,20,0,9,-27,81,33,77,52,49,53,70,50,45,62,33,0,0,0,0,0,0,0,0,0,0,0,0,0,0,0,7,0,8,8,8]} 1. d4 {[%emt 1:31:00]} d5 {[%emt 0:12:01]} 2. c4 {[%emt 0:00:00]} c6 {[%emt 0:00:08]} 3. Nc3 {[%emt 0:00:00]} Nf6 {[%emt 0:00:13]} 4. Nf3 {[%emt 0:00:00]} e6 {[%emt 0:01:09]} 5. g3 {[%emt 0:00:00]} Nbd7 {[%emt 0:00:51]} 6. Bg2 {[%emt 0:00:00]} Be7 {[%emt 0:01:53]} 7. O-O {[%emt 0:00:00]} O-O {[%emt 0:01:35]} 8. Qd3 {[%emt 0:00:00]} b6 {[%emt 0:03:30][%cal Bb7b6,Bb6b5,Bb5b4][%mdl 32]} 9. e4 {[%emt 0:00:00]} Bb7 {[%emt 0:00:47]} 10. Nd2 {[%emt 0:00:00][%cal Bf3d2,Bd2c4,Bc4e3,Be3c4,Bc4e5][%mdl 32]} dxc4 {[%emt 0:06:02]} 11. Nxc4 {[%emt 0:00:00]} b5 {[%emt 0:07:24]} 12. Ne3 {[%emt 0:00:00]} b4 {[%emt 0:02:57]} 13. Ne2 {[%emt 0:00:00]} e5 {[%emt 0:15:00] [#]} (13... c5 $11 14. Rd1 cxd4 15. Nxd4 a5) 14. Rd1 {[%emt 0:00:00]} (14. Qc2 $1 $16) 14... Re8 {[%emt 0:01:38]} 15. Nc4 {[%emt 0:00:00]} Qc7 {[%emt 0:09:30]} 16. Qc2 {[%emt 0:00:00]} Ba6 {[%emt 0:04:05]} 17. h3 {[%emt 0:00:00]} Rad8 {[%emt 0:05:31]} 18. Be3 {[%emt 0:00:00]} c5 {[%emt 0:06:48]} 19. Nxe5 {[%emt 0:00:00]} Bxe2 {[%emt 0:05:11] The position is equal.} 20. Qxe2 {[%emt 0:00:00] [#] And now Nxd7 would win.} cxd4 {[%emt 0:00:12]} 21. Nxd7 {[%emt 0:00:00]} dxe3 {[%emt 0:00:07]} 22. Nxf6+ $1 {[%emt 0:00:00]} Bxf6 {[%emt 0:00:06]} 23. Qxe3 {[%emt 0:00:00]} Bxb2 {[%emt 0:00:46]} 24. Rab1 {[%emt 0:00:00] Strongly threatening Rxd8.} Bc3 {[%emt 0:03:32]} 25. Bf1 {[%emt 0:00:00][%cal Bg2f1,Bf1b5,Bb5a4][%mdl 32]} a5 {[%emt 0:01:07]} 26. Bb5 {[%emt 0:00:00] Against Qc6} Re7 {[%emt 0:02:53]} 27. Ba4 {[%emt 0:00:00]} Rf8 {[%emt 0:03:33]} 28. Rd5 {[%emt 0:13:30]} Qc4 {[%emt 0:02:42] Weighted Error Value: White=0.11 (very precise) /Black=0.17 (very precise) .  Mistake:       	White=1     	Black=1      Inaccurate:     	White=2     	Black=2      OK:         	White=8     	Black=7      Best:        	White=1     	Black=2      Strong:       	White=1     	---} 1/2-1/2

[Event "7th Sharjah Challengers 2024"]
[Site "Sharjah"]
[Date "2024.05.18"]
[Round "5.10"]
[White "Suyarov, Mukhammadzokhid"]
[Black "Ezat, Mohamed"]
[Result "1-0"]
[ECO "C88"]
[WhiteElo "2431"]
[BlackElo "2342"]
[Annotator "TA"]
[PlyCount "71"]
[EventDate "2024.05.13"]
[EventType "swiss"]
[EventCountry "UAE"]
[SourceTitle "playchess.com"]
[Source "ChessBase"]
[SourceQuality "1"]
[TimeControl "5400+30"]

{[%evp 21,71,17,76,25,27,31,36,28,36,22,35,33,33,37,63,15,34,0,0,0,0,0,0,-103,-103,-136,-127,-200,-196,-177,186,118,129,129,327,326,326,333,327,333,335,335,335,335,333,321,29994,29995,29995,29996,29998,29999]} 1. e4 {[%emt 0:00:27]} e5 {[%emt 0:00:18]} 2. Nf3 {[%emt 0:00:16]} Nc6 {[%emt 0:00:03]} 3. Bb5 {[%emt 0:00:20]} a6 {[%emt 0:00:16]} 4. Ba4 {[%emt 0:00:16]} Nf6 {[%emt 0:00:12][%cal Bg8f6,Bf6d5,Bd5c3][%mdl 32]} 5. O-O {[%emt 0:00:27]} Be7 {[%emt 0:00:09]} 6. Re1 {[%emt 0:00:16]} b5 {[%emt 0:00:07]} 7. Bb3 {[%emt 0:00:15]} O-O {[%emt 0:00:11]} 8. h3 {[%emt 0:00:08]} d5 {[%emt 0:29:41]} 9. exd5 {[%emt 0:00:19]} Nxd5 {[%emt 0:00:02]} 10. Nxe5 {[%emt 0:00:13]} Nxe5 {[%emt 0:00:03]} 11. Rxe5 {[%emt 0:00:11]} c6 {[%emt 0:00:03]} (11... Nb6 $11 {keeps the balance.}) 12. Nc3 {[%emt 0:05:57]} (12. Re1 $16) 12... Nxc3 $1 $11 {[%emt 0:09:58]} 13. bxc3 {[%emt 0:00:21]} Bf6 {[%emt 0:00:52]} 14. Re3 {[%emt 0:21:23] White is slightly better.} c5 {[%emt 0:09:54] Strongly threatening ...c4.} 15. Qf3 {[%emt 0:00:40]} Ra7 {[%emt 0:00:31]} 16. Bd5 {[%emt 0:00:48]} Rd7 {[%emt 0:14:28]} 17. Be4 {[%emt 0:00:34]} b4 {[%emt 0:01:05]} 18. Bd3 {[%emt 0:10:16]} (18. Qf5 $14 g6 19. Qxc5 bxc3 20. d3 (20. dxc3 $2 Be7 $17)) 18... g6 {[%emt 0:09:55]} 19. Bb2 {[%emt 0:01:45]} c4 {[%emt 0:05:42]} 20. Bxc4 {[%emt 0:01:32]} Bb7 {[%emt 0:00:09]} 21. Qg4 {[%emt 0:01:05]} Rxd2 {[%emt 0:00:15]} 22. Bb3 {[%emt 0:00:27]} (22. Rb1 $11) 22... a5 $1 $17 {[%emt 0:02:19]} 23. Rae1 {[%emt 0:01:10]} a4 $1 {[%emt 0:04:19]} 24. Bxa4 {[%emt 0:04:58]} (24. Bxf7+ $17 Kxf7 25. Qxb4) 24... bxc3 $1 $19 {[%emt 0:00:41]} 25. Ba3 {[%emt 0:01:09]} (25. Bxc3 Bxc3 26. Rxc3 Rd4 $19) 25... Rd4 $4 {[%emt 0:00:28][%mdl 8192]} (25... Bh4 $1 $19 {[%cal Rh4f2]} 26. g3 Qf6) 26. Qg3 {[%emt 0:00:23]} ({White should try} 26. Qe2 $1 $18 {Re8 would now be deadly.} Qd5 (26... Rxa4 $2 27. Bxf8 Qd5 28. Rf3 $18) 27. Rg3) 26... Bh4 $16 {[%emt 0:04:59]} (26... Rxa4 $2 27. Bxf8 Kxf8 28. Re8+ Qxe8 29. Rxe8+ Kxe8 30. Qb8+ Bd8 31. Qxb7 Rxa2 32. Qc6+ Ke7 33. Qc5+ (33. Qxc3 Ra6 $18) 33... Ke8 34. Qxc3 $18) 27. Qe5 $36 {[%emt 0:04:17][%mdl 2048] Keeping Black busy.} Rxa4 $2 {[%emt 0:01:16] A mistake that costs the game.} (27... Qg5 $16 28. Qxg5 (28. Qxd4 $2 Qxg2#) 28... Bxg5) 28. Bxf8 $18 {[%emt 0:00:40]} Qxf8 {[%emt 0:00:12] [#]} 29. g3 $1 {[%emt 0:00:33]} Bd8 {[%emt 0:00:55]} 30. Qb5 {[%emt 0:00:22] Prevents Bb6.} Rb4 {[%emt 0:00:05] [#]} (30... Rxa2 $2 {is the wrong capture.} 31. Re8 $18 (31. Qxb7 Kg7 $18) (31. Qxb7 Kg7 $18)) 31. Qd7 {[%emt 0:00:14][%cal Oe3e8] Black must now prevent Re8!} Kg7 {[%emt 0:03:01][%cal Bg8g7,Bg7h6,Bh6g5][%mdl 32]} 32. Re8 {[%emt 0:00:42]} (32. Rxc3 $2 {too greedy.} Bf6 33. Rc7 Rd4 $19) 32... Qc5 {[%emt 0:00:04]} 33. Qxd8 {[%emt 0:00:17]} Qc6 $2 {[%emt 0:00:13]} (33... Qd5 $18 34. Rg8+ Kh6 35. Qxd5 (35. Qf8+ Kh5 $18) 35... Bxd5) 34. Rg8+ {[%emt 0:00:06] White mates.} Kh6 {[%emt 0:00:10]} 35. Qf8+ {[%emt 0:00:05]} Kg5 {[%emt 0:01:11]} 36. Re5+ {[%emt 0:00:06] Weighted Error Value: White=0.21 (precise) /Black=0.38.  Loses game:     	---       	Black=1      Missed win:     	---       	Black=1      Mistake:       	White=4     	Black=1      Inaccurate:     	White=2     	Black=1      OK:         	White=11    	Black=10     Best:        	White=2     	Black=2      Strong:       	White=1     	Black=4} 1-0

[Event "7th Sharjah Challengers 2024"]
[Site "Sharjah"]
[Date "2024.05.18"]
[Round "5.11"]
[White "Peycheva, Gergana"]
[Black "Harsh Suresh"]
[Result "1/2-1/2"]
[ECO "D35"]
[WhiteElo "2295"]
[BlackElo "2417"]
[Annotator "TA"]
[PlyCount "59"]
[EventDate "2024.05.13"]
[EventType "swiss"]
[EventCountry "UAE"]
[SourceTitle "playchess.com"]
[Source "ChessBase"]
[SourceQuality "1"]
[TimeControl "5400+30"]

{[%evp 11,59,26,30,19,18,17,16,27,6,12,24,31,33,26,30,35,33,23,23,18,33,35,63,32,39,41,44,41,54,19,22,11,49,58,62,64,77,71,64,64,80,0,0,0,0,0,0,0,37,0]} 1. d4 {[%emt 0:00:03]} d5 {[%emt 0:00:22]} 2. c4 {[%emt 0:00:07]} e6 {[%emt 0:00:07]} 3. Nc3 {[%emt 0:00:07]} Nf6 {[%emt 0:00:06]} 4. cxd5 {[%emt 0:00:34]} exd5 {[%emt 0:00:06]} 5. Bg5 {[%emt 0:00:34]} Bb4 {[%emt 0:00:29]} 6. e3 {[%emt 0:01:06]} h6 {[%emt 0:00:18]} 7. Bxf6 {[%emt 0:00:27]} Qxf6 {[%emt 0:00:18]} 8. Qb3 {[%emt 0:00:05][%csl LRb4,LRd5]} Qd6 {[%emt 0:14:53]} 9. a3 {[%emt 0:00:38] The position is equal.} Bxc3+ {[%emt 0:03:24]} 10. Qxc3 {[%emt 0:00:12]} O-O {[%emt 0:02:14]} 11. Bd3 {[%emt 0:02:12]} Re8 {[%emt 0:12:56]} 12. Nf3 {[%emt 0:04:48]} c6 {[%emt 0:04:52]} 13. O-O {[%emt 0:02:12][%cal Bh1f1,Bf1c1,Bc1c5][%mdl 32]} Qf6 {[%emt 0:03:33]} 14. b4 {[%emt 0:05:34]} Bf5 {[%emt 0:08:10]} 15. Ne5 {[%emt 0:06:46]} Bxd3 {[%emt 0:08:55]} 16. Qxd3 {[%emt 0:07:48]} (16. Nxd3 {simplifies} Nd7 17. b5 Nb6 18. bxc6 Qxc6 19. Qxc6 bxc6 20. Rfb1) 16... Qd6 {[%emt 0:06:07]} 17. Rfc1 {[%emt 0:05:40]} f6 {[%emt 0:02:49]} 18. Qg6 {[%emt 0:05:44]} Qe6 {[%emt 0:02:21]} 19. Nd3 {[%emt 0:08:04] [#] Nc5 is the strong threat.} Nd7 {[%emt 0:02:47]} 20. Nc5 {[%emt 0:02:19]} (20. b5 $5) 20... Nxc5 {[%emt 0:01:16]} 21. Rxc5 {[%emt 0:02:22]} Rec8 {[%emt 0:08:19]} (21... f5 {simplifies} 22. Qxe6+ Rxe6 23. a4 a6) 22. Rac1 {[%emt 0:01:54]} a6 {[%emt 0:03:27]} 23. a4 {[%emt 0:01:35] White has more active pieces.} Qd6 {[%emt 0:03:40]} 24. b5 {[%emt 0:07:03]} (24. g3 {simplifies} Qd7 25. Qc2 Qe6 26. b5) 24... axb5 {[%emt 0:00:47]} 25. axb5 {[%emt 0:00:06]} Ra5 {[%emt 0:00:46]} 26. bxc6 {[%emt 0:07:34]} (26. Qf5 $16 Rd8 27. bxc6 Rxc5 28. Rxc5 bxc6 29. g3) 26... Rxc5 $11 {[%emt 0:00:07]} 27. Rxc5 {[%emt 0:00:04]} Rxc6 {[%emt 0:02:03]} 28. Qe8+ {[%emt 0:01:47]} Kh7 {[%emt 0:01:17]} 29. Rxc6 {[%emt 0:00:12]} bxc6 {[%emt 0:00:50]} 30. g3 {[%emt 0:01:50] Weighted Error Value: White=0.12 (very precise) /Black=0.09 (flawless) .  Mistake:       	White=1     	---        Inaccurate:     	White=3     	Black=3      OK:         	White=9     	Black=6      Best:        	---       	Black=3} 1/2-1/2

[Event "7th Sharjah Challengers 2024"]
[Site "Sharjah"]
[Date "2024.05.18"]
[Round "5.12"]
[White "Imomkuzieva, Nilufarkhon"]
[Black "Kazarian, Anna-Maja"]
[Result "1/2-1/2"]
[ECO "C10"]
[WhiteElo "1922"]
[BlackElo "2182"]
[Annotator "RC"]
[PlyCount "77"]
[EventDate "2024.05.13"]
[EventType "swiss"]
[EventCountry "UAE"]
[SourceTitle "playchess.com"]
[Source "ChessBase"]
[SourceQuality "1"]
[TimeControl "5400+30"]

1. e4 {[%emt 0:00:04]} e6 {[%emt 0:00:03]} 2. d4 {[%emt 0:00:03]} d5 {[%emt 0:00:03]} 3. Nc3 {[%emt 0:00:03]} Nf6 {[%emt 0:00:03]} 4. Bg5 {[%emt 0:00:03]} dxe4 {[%emt 0:02:30]} 5. Nxe4 {[%emt 0:00:05]} Nbd7 {[%emt 0:00:08]} 6. Nf3 {[%emt 0:00:08]} h6 {[%emt 0:00:53]} 7. Nxf6+ {[%emt 0:00:06]} Nxf6 {[%emt 0:00:04]} 8. Be3 {[%emt 0:00:02]} Nd5 {[%emt 0:08:05]} 9. Bd2 {[%emt 0:00:04]} c5 {[%emt 0:01:11]} 10. c4 {[%emt 0:11:57]} Nf6 {[%emt 0:03:40]} 11. dxc5 {[%emt 0:03:36]} Bxc5 {[%emt 0:00:42]} 12. b4 {[%emt 0:00:13]} Be7 {[%emt 0:03:39]} 13. c5 {[%emt 0:00:19]} O-O {[%emt 0:08:53]} 14. Bc4 {[%emt 0:01:06]} Ne4 {[%emt 0:00:56]} 15. Be3 {[%emt 0:12:42]} Bf6 {[%emt 0:04:28]} 16. Bd4 {[%emt 0:05:02]} Bxd4 {[%emt 0:06:14]} 17. Qxd4 {[%emt 0:01:06]} Qxd4 {[%emt 0:00:34]} 18. Nxd4 {[%emt 0:00:05]} a5 {[%emt 0:00:17]} 19. f3 {[%emt 0:04:01]} Nc3 {[%emt 0:01:36]} 20. b5 {[%emt 0:07:01]} Rd8 {[%emt 0:06:07]} 21. Ne2 {[%emt 0:08:59]} Na4 {[%emt 0:03:05]} 22. c6 {[%emt 0:00:53]} Nb2 {[%emt 0:05:28]} 23. Rc1 {[%emt 0:04:22]} bxc6 {[%emt 0:00:15]} 24. bxc6 {[%emt 0:00:08]} Nxc4 {[%emt 0:01:13]} 25. Rxc4 {[%emt 0:00:30]} Ba6 {[%emt 0:00:05]} 26. Rc2 {[%emt 0:40:52]} Bd3 {[%emt 0:01:44]} 27. Rd2 {[%emt 0:00:00]} Rac8 {[%emt 0:01:02]} 28. Kf2 {[%emt 0:00:00]} Bb5 {[%emt 0:09:23]} 29. Rxd8+ {[%emt 0:00:00]} Rxd8 {[%emt 0:00:04]} 30. c7 {[%emt 0:00:00]} Rc8 {[%emt 0:00:03]} 31. Rc1 {[%emt 0:00:00]} Bd7 {[%emt 0:00:19]} 32. Nd4 {[%emt 0:00:00]} Kf8 {[%emt 0:01:10]} 33. Nb3 {[%emt 0:00:00]} a4 {[%emt 0:00:12]} 34. Na5 {[%emt 0:00:00]} Ke7 {[%emt 0:00:59]} 35. Rc5 {[%emt 0:00:00]} Kd6 {[%emt 0:03:06]} 36. Nb7+ {[%emt 0:00:00]} Ke7 {[%emt 0:00:05]} 37. Na5 {[%emt 0:00:00]} Kd6 {[%emt 0:00:05]} 38. Nb7+ {[%emt 0:00:00]} Ke7 {[%emt 0:00:04]} 39. Na5 {[%emt 0:00:00]} 1/2-1/2